fUSD/lending_fUSD_20250124
["ID","MTS","AMOUNT","RATE_DAILY","PERIOD"]
[350246364,1737735060482,-500.0,0.00019104,2]
[350246365,1737735060492,-500.0,0.00019104,2]
[350246366,1737735060502,-500.0,0.00019104,2]
[350246367,1737735060511,-228.600647,0.00019104,2]
[350246368,1737735060521,-228.600647,0.00019104,2]
[350246369,1737735060530,-1417.9,0.00019104,2]
[350246370,1737735060540,-656.44,0.00019104,2]
[350246371,1737735060550,-582.99,0.00019104,2]
[350246372,1737735060560,-500.0,0.00019104,2]
[350246373,1737735060569,-151.0,0.00019104,2]
[350246374,1737735060579,-544.3,0.00019104,2]
[350246375,1737735060589,-500.0,0.00019104,2]
[350246376,1737735060598,-151.0,0.00019104,2]
[350246377,1737735060608,-500.0,0.00019104,2]
[350246378,1737735060618,-1083.19,0.00019104,2]
[350246379,1737735060628,-500.0,0.00019104,2]
[350246380,1737735060638,-634.65,0.00019104,2]
[350246381,1737735060648,-500.0,0.00019104,2]
[350246382,1737735060657,-1858.23,0.00019104,2]
[350246383,1737735060667,-500.0,0.00019104,2]
[350246384,1737735060676,-516.81,0.00019104,2]
[350246385,1737735060686,-1003.94,0.00019104,2]
[350246386,1737735060696,-500.0,0.00019104,2]
[350246387,1737735060705,-695.07,0.00019104,2]
[350246388,1737735060714,-500.0,0.00019104,2]
[350246389,1737735060725,-500.0,0.00019104,2]
[350246390,1737735060735,-530.99,0.00019104,2]
[350246391,1737735060744,-500.0,0.00019104,2]
[350246392,1737735060757,-500.0,0.00019104,2]
[350246393,1737735060766,-4029.1,0.00019104,2]
[350246394,1737735060776,-500.0,0.00019104,2]
[350246395,1737735060786,-1624.84,0.00019104,2]
[350246396,1737735060796,-672.83,0.00019104,2]
[350246397,1737735060805,-500.0,0.00019104,2]
[350246398,1737735060815,-2230.2,0.00019104,2]
[350246399,1737735060825,-500.0,0.00019104,2]
[350246400,1737735060834,-514.30030868,0.00019104,2]
[350246401,1737735060844,-500.0,0.00019104,2]
[350246402,1737735060854,-500.0,0.00019104,2]
[350246403,1737735060864,-559.05,0.00019104,2]
[350246404,1737735060876,-151.0,0.00019104,2]
[350246405,1737735060886,-500.0,0.00019104,2]
[350246406,1737735060896,-1209.66,0.00019104,2]
[350246407,1737735060907,-151.0,0.00019104,2]
[350246408,1737735060917,-176.621075,0.00019104,2]
[350246409,1737735060926,-1414.61,0.00019104,2]
[350246410,1737735060936,-500.0,0.00019104,2]
[350246411,1737735060947,-176.621075,0.00019104,2]
[350246412,1737735060956,-500.0,0.00019104,2]
[350246413,1737735060966,-3342.18,0.00019104,2]
[350246414,1737735060975,-500.0,0.00019104,2]
[350246415,1737735060985,-500.0,0.00019104,2]
[350246416,1737735060996,-500.0,0.00019104,2]
[350246417,1737735061006,-8675.337072,0.00019104,2]
[350246418,1737735061016,-500.0,0.00019104,2]
[350246419,1737735061026,-8675.337072,0.00019104,2]
[350246420,1737735061036,-500.0,0.00019104,2]
[350246421,1737735061045,-500.0,0.00019104,2]
[350246422,1737735061055,-2092.8,0.00019104,2]
[350246423,1737735061064,-500.0,0.00019104,2]
[350246424,1737735061074,-500.0,0.00019104,2]
[350246425,1737735061084,-500.0,0.00019104,2]
[350246426,1737735061094,-521.83,0.00019104,2]
[350246427,1737735061103,-500.0,0.00019104,2]
[350246428,1737735061113,-1013.22,0.00019104,2]
[350246429,1737735061123,-500.0,0.00019104,2]
[350246430,1737735061133,-500.0,0.00019104,2]
[350246431,1737735061255,-500.0,0.00019104,2]
[350246432,1737735061287,-151.0,0.00019104,2]
[350246433,1737735061297,-151.0,0.00019104,2]
[350246434,1737735061307,-926.77,0.00019104,2]
[350246435,1737735061316,-522.49415733,0.00019104,2]
[350246436,1737735061325,-500.0,0.00019104,2]
[350246437,1737735061335,-926.0,0.00019104,2]
[350246438,1737735061345,-6114.66,0.00019104,2]
[350246439,1737735061354,-151.0,0.00019104,2]
[350246440,1737735061363,-255475.8486523,0.00019105,2]
[350246441,1737735061373,-500.0,0.00019105,2]
[350246442,1737735061382,-151.0,0.00019105,2]
[350246443,1737735061391,-500.0,0.00019105,2]
[350246444,1737735061400,-500.0,0.00019105,7]
[350246445,1737735061410,-406.29093075,0.00019105,2]
[350246446,1737735061419,-500.0,0.00019105,2]
[350246447,1737735061428,-500.0,0.00019105,2]
[350246448,1737735061437,-500.0,0.00019105,2]
[350246449,1737735061446,-747.3,0.00019105,2]
[350246450,1737735061455,-578.69,0.00019105,2]
[350246451,1737735061464,-500.0,0.00019105,2]
[350246452,1737735061473,-500.0,0.00019105,2]
[350246453,1737735061484,-550.89,0.00019105,2]
[350246454,1737735061493,-500.0,0.00019105,2]
[350246455,1737735061503,-511.9116119,0.00019105,2]
[350246456,1737735061513,-500.0,0.00019105,2]
[350246457,1737735061523,-509.7,0.00019105,2]
[350246458,1737735061534,-500.0,0.00019105,2]
[350246459,1737735061545,-500.0,0.00019105,2]
[350246460,1737735061555,-500.0,0.00019105,2]
[350246461,1737735061565,-500.0,0.00019105,2]
[350246462,1737735061575,-151.0,0.00019105,2]
[350246463,1737735061585,-151.0,0.00019105,2]
[350246464,1737735061594,-299.539064,0.00019105,2]
[350246465,1737735061604,-151.0,0.00019105,2]
[350246466,1737735061614,-151.0,0.00019105,2]
[350246467,1737735061624,-299.539064,0.00019105,2]
[350246468,1737735061633,-151.0,0.00019105,2]
[350246469,1737735061643,-151.0,0.00019105,2]
[350246470,1737735061652,-151.0,0.00019105,2]
[350246471,1737735061662,-583.716091,0.00019105,2]
[350246472,1737735061672,-205.712446,0.00019105,2]
[350246473,1737735061681,-583.716091,0.00019105,2]
[350246474,1737735061691,-151.0,0.00019105,2]
[350246475,1737735061700,-920.656775,0.00019105,2]
[350246476,1737735061710,-151.0,0.00019105,2]
[350246477,1737735061720,-623.66119626,0.00019107,2]
[350246478,1737735061730,-500.0,0.0001911,2]
[350246479,1737735061743,-1307.0,0.0001911,2]
[350246480,1737735061753,-838.95815408,0.0001913,2]
[350246481,1737735061763,-2022.09554724,0.00019134,2]
[350246482,1737735061774,-761.49441628,0.00019137,2]
[350246483,1737735061783,-1307.0,0.00019137,2]
[350246484,1737735061793,-151.0,0.00019141,2]
[350246485,1737735061803,-500.0,0.00019141,2]
[350246486,1737735061813,-798.61,0.00019141,2]
[350246487,1737735061823,-2156.11,0.00019141,2]
[350246488,1737735061834,-500.0,0.00019141,2]
[350246489,1737735061843,-927.0,0.00019141,2]
[350246490,1737735061854,-500.0,0.00019141,2]
[350246491,1737735061864,-544.0,0.00019141,2]
[350246492,1737735061874,-500.0,0.00019141,2]
[350246493,1737735061887,-517.74,0.00019141,2]
[350246494,1737735061897,-1223.83,0.00019141,2]
[350246495,1737735061908,-500.0,0.00019141,2]
[350246496,1737735061919,-1716.18,0.00019141,2]
[350246497,1737735061929,-1769.78,0.00019141,2]
[350246498,1737735061939,-173.652634,0.00019141,2]
[350246499,1737735061949,-617.72,0.00019141,2]
[350246500,1737735061960,-3582.9,0.00019141,2]
[350246501,1737735061970,-242.8576,0.00019141,2]
[350246502,1737735061980,-408.19453,0.00019141,2]
[350246503,1737735061991,-408.19453,0.00019141,2]
[350246504,1737735062001,-6343.0,0.00019141,2]
[350246505,1737735062010,-151.0,0.00019141,2]
[350246506,1737735062019,-851.26,0.00019141,2]
[350246507,1737735062030,-151.0,0.00019141,2]
[350246508,1737735062040,-592.94,0.00019141,2]
[350246509,1737735062051,-205.913122,0.00019141,2]
[350246510,1737735062061,-176.621075,0.00019141,2]
[350246511,1737735062071,-176.621075,0.00019141,2]
[350246512,1737735062080,-500.0,0.00019141,2]
[350246513,1737735062090,-8675.337072,0.00019141,2]
[350246514,1737735062101,-805.09,0.00019141,2]
[350246515,1737735062111,-8675.337072,0.00019141,2]
[350246516,1737735062121,-1086.75,0.00019141,2]
[350246517,1737735062130,-1200.3,0.00019141,2]
[350246518,1737735062140,-500.0,0.00019141,2]
[350246519,1737735062149,-1000.0,0.00019141,2]
[350246520,1737735062159,-21080.07698606,0.00019141,2]
[350246521,1737735062170,-500.0,0.00019149,2]
[350246522,1737735062180,-3967.6187229,0.0001915,2]
[350246523,1737735062189,-228.600647,0.0001915,2]
[350246524,1737735062199,-228.600647,0.0001915,2]
[350246525,1737735062209,-151.0,0.0001915,2]
[350246526,1737735062219,-153.397071,0.0001915,2]
[350246527,1737735062228,-150.0,0.00019151,2]
[350246528,1737735062239,-150.0,0.00019151,2]
[350246529,1737735062249,-150.0,0.00019151,2]
[350246530,1737735062258,-150.0,0.00019151,2]
[350246531,1737735062270,-7302.18459997,0.00019155,2]
[350246532,1737735062281,-12738.47427576,0.0001916,2]
[350246533,1737735062290,-4254.43641519,0.0001916,2]
[350246534,1737735062300,-338.162934,0.0001916,2]
[350246535,1737735062311,-338.162934,0.0001916,2]
[350246536,1737735062320,-926.663611,0.0001916,2]
[350246537,1737735062330,-151.0,0.0001916,2]
[350246538,1737735062340,-926.663611,0.0001916,2]
[350246539,1737735062350,-151.0,0.0001916,2]
[350246540,1737735062360,-151.0,0.0001916,2]
[350246541,1737735062370,-151.0,0.0001916,2]
[350246542,1737735062393,-289.114176,0.0001916,2]
[350246543,1737735062403,-151.0,0.0001916,2]
[350246544,1737735062412,-500.0,0.00019164,2]
[350246545,1737735062422,-1000.0,0.00019164,2]
[350246546,1737735062432,-1307.0,0.00019165,2]
[350246547,1737735062441,-2022.09554724,0.0001917,2]
[350246548,1737735062450,-700.0,0.0001917,2]
[350246549,1737735062460,-700.0,0.0001917,2]
[350246550,1737735062470,-750.0,0.0001917,2]
[350246551,1737735062480,-500.0,0.0001917,2]
[350246552,1737735062490,-150.0,0.00019178,2]
[350246553,1737735062499,-150.0,0.00019178,2]
[350246554,1737735062509,-1381.687,0.00019178,2]
[350246555,1737735062518,-151.0,0.00019179,2]
[350246556,1737735062528,-151.0,0.00019179,2]
[350246557,1737735062538,-154.503788,0.00019179,2]
[350246558,1737735062547,-1559.4015789,0.00019189,2]
[350246559,1737735062556,-1307.0,0.00019192,2]
[350246560,1737735062566,-150.0,0.00019194,4]
[350246561,1737735062575,-327.841214,0.000192,2]
[350246562,1737735062585,-327.841214,0.000192,2]
[350246563,1737735062594,-151.0,0.000192,2]
[350246564,1737735062604,-151.0,0.000192,2]
[350246565,1737735062614,-151.0,0.000192,2]
[350246566,1737735062624,-151.0,0.000192,2]
[350246567,1737735062633,-151.0,0.000192,2]
[350246568,1737735062643,-151.0,0.00019202,2]
[350246569,1737735062652,-176.621075,0.00019202,2]
[350246570,1737735062662,-176.621075,0.00019202,2]
[350246571,1737735062671,-8675.337072,0.00019202,2]
[350246572,1737735062681,-8675.337072,0.00019202,2]
[350246573,1737735062691,-151.0,0.00019202,2]
[350246574,1737735062700,-151.0,0.00019202,2]
[350246575,1737735062711,-150.0,0.00019205,2]
[350246576,1737735062720,-2022.09554724,0.00019206,2]
[350246577,1737735062731,-623.66119626,0.0001921,2]
[350246578,1737735062742,-1307.0,0.0001922,2]
[350246579,1737735062752,-7244.7045095,0.00019227,2]
[350246580,1737735062761,-3641.8739665,0.00019227,2]
[350246581,1737735062771,-4501.7669925,0.00019227,2]
[350246582,1737735062780,-4314.8296598,0.00019227,2]
[350246583,1737735062790,-150.0,0.00019228,4]
[350246584,1737735062799,-4979.844141,0.00019228,2]
[350246585,1737735062809,-4773.0544997,0.00019228,2]
[350246586,1737735062818,-1728.8688368,0.00019228,2]
[350246587,1737735062829,-150.0,0.00019233,2]
[350246588,1737735062839,-7302.18459997,0.00019235,2]
[350246589,1737735062849,-150.0,0.00019237,4]
[350246590,1737735062859,-509.51,0.0001924,2]
[350246591,1737735062871,-577.72,0.0001924,2]
[350246592,1737735062881,-580.64,0.0001924,2]
[350246593,1737735062891,-679.78,0.0001924,2]
[350246594,1737735062900,-1705.53,0.0001924,2]
[350246595,1737735062909,-2554.5,0.0001924,2]
[350246596,1737735062920,-676.513947,0.0001924,2]
[350246597,1737735062930,-500.0,0.0001924,2]
[350246598,1737735062940,-956.9,0.0001924,2]
[350246599,1737735062950,-1945.88,0.0001924,2]
[350246600,1737735062961,-2012.13,0.0001924,2]
[350246601,1737735062970,-622.12,0.0001924,2]
[350246602,1737735062980,-846.729176,0.0001924,2]
[350246603,1737735062990,-1583.64,0.0001924,2]
[350246604,1737735062999,-564.16,0.0001924,2]
[350246605,1737735063009,-1121.35,0.0001924,2]
[350246606,1737735063019,-228.600647,0.0001924,2]
[350246607,1737735063029,-228.600647,0.0001924,2]
[350246608,1737735063039,-871.63,0.0001924,2]
[350246609,1737735063049,-151.0,0.0001924,2]
[350246610,1737735063059,-1370.61,0.0001924,2]
[350246611,1737735063069,-705.29,0.0001924,2]
[350246612,1737735063079,-1962.44,0.0001924,2]
[350246613,1737735063093,-718.17,0.0001924,2]
[350246614,1737735063103,-619.05,0.0001924,2]
[350246615,1737735063112,-865.04,0.0001924,2]
[350246616,1737735063122,-483.84,0.0001924,2]
[350246617,1737735063132,-2217.77,0.0001924,2]
[350246618,1737735063142,-722.1,0.0001924,2]
[350246619,1737735063152,-562.1,0.0001924,2]
[350246620,1737735063162,-2901.51,0.0001924,2]
[350246621,1737735063173,-408.19453,0.0001924,2]
[350246622,1737735063184,-503.38,0.0001924,2]
[350246623,1737735063195,-408.19453,0.0001924,2]
[350246624,1737735063205,-1511.51,0.0001924,2]
[350246625,1737735063215,-500.0,0.0001924,2]
[350246626,1737735063226,-1656.27,0.0001924,2]
[350246627,1737735063236,-831.3,0.0001924,2]
[350246628,1737735063246,-151.0,0.0001924,2]
[350246629,1737735063256,-1027.33,0.0001924,2]
[350246630,1737735063266,-1185.98,0.0001924,2]
[350246631,1737735063276,-985.79,0.0001924,2]
[350246632,1737735063286,-2108.39,0.0001924,2]
[350246633,1737735063296,-1080.47,0.0001924,2]
[350246634,1737735063306,-838.77,0.0001924,2]
[350246635,1737735063315,-538.96,0.0001924,2]
[350246636,1737735063327,-500.0,0.0001924,2]
[350246637,1737735063337,-578.58,0.0001924,2]
[350246638,1737735063348,-2039.23,0.0001924,2]
[350246639,1737735063359,-1068.15,0.0001924,2]
[350246640,1737735063369,-500.0,0.0001924,2]
[350246641,1737735063379,-1155.96,0.0001924,2]
[350246642,1737735063390,-2273.11,0.0001924,2]
[350246643,1737735063400,-1338.57,0.0001924,2]
[350246644,1737735063410,-3483.22,0.0001924,2]
[350246645,1737735063419,-500.0,0.0001924,2]
[350246646,1737735063430,-872.95,0.0001924,2]
[350246647,1737735063440,-1147.06,0.0001924,2]
[350246648,1737735063449,-500.0,0.0001924,2]
[350246649,1737735063459,-1277.07,0.0001924,2]
[350246650,1737735063469,-2989.39,0.0001924,2]
[350246651,1737735063479,-644.25,0.0001924,2]
[350246652,1737735063491,-871.11,0.0001924,2]
[350246653,1737735063501,-151.0,0.00019241,2]
[350246654,1737735063510,-500.0,0.00019241,2]
[350246655,1737735063520,-500.0,0.00019241,2]
[350246656,1737735063530,-500.0,0.00019241,2]
[350246657,1737735063540,-500.0,0.00019241,2]
[350246658,1737735063550,-446.51461783,0.00019241,2]
[350246659,1737735063560,-500.0,0.00019241,2]
[350246660,1737735063570,-500.0,0.00019241,2]
[350246661,1737735063751,-677.93,0.00019241,2]
[350246662,1737735063762,-500.0,0.00019241,2]
[350246663,1737735063773,-660.08,0.00019241,2]
[350246664,1737735063783,-500.0,0.00019241,2]
[350246665,1737735063793,-589.35,0.00019241,2]
[350246666,1737735063803,-500.0,0.00019241,2]
[350246667,1737735063813,-500.0,0.00019241,2]
[350246668,1737735063822,-770.43,0.00019241,2]
[350246669,1737735063832,-500.0,0.00019241,2]
[350246670,1737735063843,-500.0,0.00019241,2]
[350246671,1737735063853,-500.0,0.00019241,2]
[350246672,1737735063863,-513.79,0.00019241,2]
[350246673,1737735063875,-500.0,0.00019241,2]
[350246674,1737735063886,-580.89,0.00019241,2]
[350246675,1737735063896,-614.29,0.00019241,2]
[350246676,1737735063906,-500.0,0.00019241,2]
[350246677,1737735063917,-500.0,0.00019241,2]
[350246678,1737735063927,-500.0,0.00019241,2]
[350246679,1737735063937,-500.0,0.00019241,2]
[350246680,1737735063948,-566.81,0.00019241,2]
[350246681,1737735063959,-767.86,0.00019241,2]
[350246682,1737735063970,-500.0,0.00019241,2]
[350246683,1737735063980,-654.02,0.00019241,2]
[350246684,1737735063991,-500.0,0.00019241,2]
[350246685,1737735064002,-500.0,0.00019241,2]
[350246686,1737735064012,-366.529575,0.00019241,2]
[350246687,1737735064022,-500.0,0.00019241,2]
[350246688,1737735064032,-188.38646,0.00019241,2]
[350246689,1737735064042,-500.0,0.00019241,2]
[350246690,1737735064053,-500.0,0.00019241,2]
[350246691,1737735064063,-500.0,0.00019241,2]
[350246692,1737735064073,-500.0,0.00019241,2]
[350246693,1737735064083,-500.0,0.00019241,2]
[350246694,1737735064093,-509.94,0.00019241,2]
[350246695,1737735064103,-220.259016,0.00019241,2]
[350246696,1737735064113,-500.0,0.00019241,2]
[350246697,1737735064123,-798.82,0.00019241,2]
[350246698,1737735064133,-500.0,0.00019241,2]
[350246699,1737735064144,-652.05,0.00019241,2]
[350246700,1737735064154,-500.0,0.00019241,2]
[350246701,1737735064163,-846.33,0.00019241,2]
[350246702,1737735064173,-770.06,0.00019241,2]
[350246703,1737735064183,-937.47,0.00019241,2]
[350246704,1737735064193,-500.0,0.00019241,2]
[350246705,1737735064204,-672.05,0.00019241,2]
[350246706,1737735064214,-500.0,0.00019241,2]
[350246707,1737735064224,-692.99,0.00019241,2]
[350246708,1737735064234,-500.0,0.00019241,2]
[350246709,1737735064245,-500.0,0.00019241,2]
[350246710,1737735064255,-500.0,0.00019241,2]
[350246711,1737735064264,-500.0,0.00019241,2]
[350246712,1737735064275,-500.0,0.00019241,2]
[350246713,1737735064284,-1011.61,0.00019241,2]
[350246714,1737735064294,-500.0,0.00019241,2]
[350246715,1737735064303,-157.002754,0.00019241,2]
[350246716,1737735064313,-500.0,0.00019241,2]
[350246717,1737735064324,-500.0,0.00019241,2]
[350246718,1737735064334,-151.0,0.00019241,2]
[350246719,1737735064344,-954.97,0.00019241,2]
[350246720,1737735064354,-299.539064,0.00019241,2]
[350246721,1737735064364,-151.0,0.00019241,2]
[350246722,1737735064374,-151.0,0.00019241,2]
[350246723,1737735064383,-500.0,0.00019241,2]
[350246724,1737735064393,-594.05,0.00019241,2]
[350246725,1737735064402,-299.539064,0.00019241,2]
[350246726,1737735064412,-500.0,0.00019241,2]
[350246727,1737735064422,-614.05,0.00019241,2]
[350246728,1737735064432,-652.47,0.00019241,2]
[350246729,1737735064441,-151.0,0.00019241,2]
[350246730,1737735064451,-159.421722,0.00019241,2]
[350246731,1737735064460,-500.0,0.00019241,2]
[350246732,1737735064470,-500.0,0.00019241,2]
[350246733,1737735064480,-173.55837637,0.00019241,2]
[350246734,1737735064491,-500.0,0.00019241,2]
[350246735,1737735064501,-500.0,0.00019241,2]
[350246736,1737735064511,-583.716091,0.00019241,2]
[350246737,1737735064521,-849.3,0.00019241,2]
[350246738,1737735064531,-583.716091,0.00019241,2]
[350246739,1737735064541,-708.17,0.00019241,2]
[350246740,1737735064550,-511.38,0.00019241,2]
[350246741,1737735064560,-833.01,0.00019241,2]
[350246742,1737735064570,-681.69,0.00019241,2]
[350246743,1737735064579,-151.0,0.00019241,2]
[350246744,1737735064589,-560.31,0.00019241,2]
[350246745,1737735064599,-920.656775,0.00019241,2]
[350246746,1737735064609,-500.0,0.00019241,2]
[350246747,1737735064618,-805.26,0.00019241,2]
[350246748,1737735064628,-151.0,0.00019241,2]
[350246749,1737735064637,-697.85,0.00019241,2]
[350246750,1737735064647,-500.0,0.00019241,2]
[350246751,1737735064657,-500.0,0.00019241,2]
[350246752,1737735064667,-580.02,0.00019241,2]
[350246753,1737735064676,-500.0,0.00019241,2]
[350246754,1737735064686,-338.162934,0.00019241,2]
[350246755,1737735064695,-669.97,0.00019241,2]
[350246756,1737735064704,-500.0,0.00019241,7]
[350246757,1737735064713,-338.162934,0.00019241,2]
[350246758,1737735064723,-500.0,0.00019241,2]
[350246759,1737735064732,-500.0,0.00019241,2]
[350246760,1737735064743,-926.663611,0.00019241,2]
[350246761,1737735064753,-556.37,0.00019241,2]
[350246762,1737735064762,-151.0,0.00019241,2]
[350246763,1737735064772,-926.663611,0.00019241,2]
[350246764,1737735064781,-500.0,0.00019241,2]
[350246765,1737735064791,-500.0,0.00019241,2]
[350246766,1737735064800,-1151.25,0.00019241,2]
[350246767,1737735064809,-151.0,0.00019241,2]
[350246768,1737735064819,-582.4,0.00019241,2]
[350246769,1737735064828,-151.0,0.00019241,2]
[350246770,1737735064837,-500.0,0.00019241,2]
[350246771,1737735064847,-500.0,0.00019241,2]
[350246772,1737735064856,-500.0,0.00019241,2]
[350246773,1737735064867,-1417.9,0.00019241,2]
[350246774,1737735064879,-656.44,0.00019241,2]
[350246775,1737735064888,-582.99,0.00019241,2]
[350246776,1737735064898,-500.0,0.00019241,2]
[350246777,1737735064908,-544.3,0.00019241,2]
[350246778,1737735064919,-500.0,0.00019241,2]
[350246779,1737735064928,-500.0,0.00019241,2]
[350246780,1737735064938,-1083.19,0.00019241,2]
[350246781,1737735064948,-634.65,0.00019241,2]
[350246782,1737735064958,-500.0,0.00019241,2]
[350246783,1737735064968,-1858.23,0.00019241,2]
[350246784,1737735064977,-516.81,0.00019241,2]
[350246785,1737735064987,-1003.94,0.00019241,2]
[350246786,1737735064996,-500.0,0.00019241,2]
[350246787,1737735065006,-695.07,0.00019241,2]
[350246788,1737735065015,-530.99,0.00019241,2]
[350246789,1737735065025,-500.0,0.00019241,2]
[350246790,1737735065034,-4029.1,0.00019241,2]
[350246791,1737735065044,-500.0,0.00019241,2]
[350246792,1737735065053,-1624.84,0.00019241,2]
[350246793,1737735065062,-672.83,0.00019241,2]
[350246794,1737735065072,-500.0,0.00019241,2]
[350246795,1737735065082,-2230.2,0.00019241,2]
[350246796,1737735065091,-500.0,0.00019241,2]
[350246797,1737735065100,-500.0,0.00019241,2]
[350246798,1737735065110,-559.05,0.00019241,2]
[350246799,1737735065119,-151.0,0.00019241,2]
[350246800,1737735065129,-1209.66,0.00019241,2]
[350246801,1737735065139,-176.621075,0.00019241,2]
[350246802,1737735065149,-1414.61,0.00019241,2]
[350246803,1737735065159,-500.0,0.00019241,2]
[350246804,1737735065168,-176.621075,0.00019241,2]
[350246805,1737735065178,-500.0,0.00019241,2]
[350246806,1737735065188,-3342.18,0.00019241,2]
[350246807,1737735065198,-500.0,0.00019241,2]
[350246808,1737735065208,-8675.337072,0.00019241,2]
[350246809,1737735065217,-8675.337072,0.00019241,2]
[350246810,1737735065227,-500.0,0.00019241,2]
[350246811,1737735065237,-500.0,0.00019241,2]
[350246812,1737735065246,-2092.8,0.00019241,2]
[350246813,1737735065256,-534.63408382,0.00019241,2]
[350246814,1737735065265,-500.0,0.00019241,2]
[350246815,1737735065276,-500.0,0.00019241,2]
[350246816,1737735065285,-521.83,0.00019241,2]
[350246817,1737735065295,-1013.22,0.00019241,2]
[350246818,1737735065304,-500.0,0.00019241,2]
[350246819,1737735065313,-500.0,0.00019241,2]
[350246820,1737735065324,-151.0,0.00019241,2]
[350246821,1737735065333,-926.77,0.00019241,2]
[350246822,1737735065343,-500.0,0.00019241,2]
[350246823,1737735065352,-926.0,0.00019241,2]
[350246824,1737735065362,-6114.66,0.00019241,2]
[350246825,1737735065372,-151.0,0.00019241,2]
[350246826,1737735065381,-2022.09554724,0.00019242,2]
[350246827,1737735065391,-500.0,0.00019242,2]
[350246828,1737735065400,-500.0,0.00019242,2]
[350246829,1737735065409,-500.0,0.00019242,2]
[350246830,1737735065419,-500.0,0.00019242,2]
[350246831,1737735065428,-500.0,0.00019242,2]
[350246832,1737735065437,-747.3,0.00019242,2]
[350246833,1737735065447,-578.69,0.00019242,2]
[350246834,1737735065456,-500.0,0.00019242,2]
[350246835,1737735065466,-550.89,0.00019242,2]
[350246836,1737735065475,-500.0,0.00019242,2]
[350246837,1737735065484,-500.0,0.00019242,2]
[350246838,1737735065499,-500.0,0.00019242,2]
[350246839,1737735065509,-500.0,0.00019242,2]
[350246840,1737735065518,-500.0,0.00019242,2]
[350246841,1737735065529,-157.38748083,0.00019242,2]
[350246842,1737735065538,-152.0,0.00019243,4]
[350246843,1737735065548,-1307.0,0.00019247,2]
[350246844,1737735065558,-207.0,0.0001925,2]
[350246845,1737735065568,-260.39498155,0.0001926,2]
[350246846,1737735065577,-7501.0036653,0.00019265,2]
[350246847,1737735065587,-4028.6324824,0.00019265,2]
[350246848,1737735065597,-228.600647,0.00019265,2]
[350246849,1737735065606,-228.600647,0.00019265,2]
[350246850,1737735065616,-151.0,0.00019265,2]
[350246851,1737735065626,-408.19453,0.00019265,2]
[350246852,1737735065635,-408.19453,0.00019265,2]
[350246853,1737735065645,-151.0,0.00019265,2]
[350246854,1737735065655,-526.0353061,0.00019273,2]
[350246855,1737735065664,-500.58072799,0.00019273,2]
[350246856,1737735065674,-500.0,0.00019273,2]
[350246857,1737735065684,-206.79428996,0.00019273,2]
[350246858,1737735065694,-305.75585395,0.00019273,2]
[350246859,1737735065704,-151.99456552,0.00019273,2]
[350246860,1737735065713,-323.783697,0.00019273,2]
[350246861,1737735065724,-500.0,0.00019273,2]
[350246862,1737735065734,-1307.0,0.00019274,2]
[350246863,1737735065744,-327.841214,0.00019278,2]